bitfinex/quotes_BTCUSD_20241223
["timestamp","ask_amount","ask_price","bid_price","bid_amount"]
[1734984819804,9.118e-05,92762.0,92734.0,0.03697482]
[1734984820002,0.215635,92750.0,92736.0,0.10398632]
[1734984820814,0.215627,92753.0,92736.0,0.10398632]
[1734984820981,0.215636,92749.0,92734.0,0.03697482]
[1734984821292,0.215636,92749.0,92735.0,0.10407182]
[1734984822532,0.216636,92749.0,92735.0,0.10407182]
[1734984822689,0.215636,92749.0,92735.0,0.10407182]
[1734984822951,9.118e-05,92762.0,92735.0,8.55e-05]
[1734984823086,0.15,92760.0,92735.0,0.0010855]
[1734984823340,0.215617,92757.0,92735.0,8.55e-05]
[1734984823539,0.215661,92738.0,92735.0,8.55e-05]
[1734984823964,0.365665,92736.0,92734.0,0.01182979]
[1734984824614,0.15,92735.0,92734.0,0.01182979]
[1734984825844,0.2326,92735.0,92734.0,0.01182979]
[1734984826042,0.33558632,92735.0,92734.0,0.01182979]
[1734984826441,0.33658632,92735.0,92734.0,0.01182979]
[1734984827027,0.33758632,92735.0,92734.0,0.01182979]
[1734984827421,0.33958632,92735.0,92734.0,0.01182979]
[1734984828012,0.38278632,92735.0,92734.0,0.01182979]
[1734984828443,0.38378632,92735.0,92734.0,0.01182979]
[1734984828650,0.38178632,92735.0,92734.0,0.01182979]
[1734984828826,0.38178632,92735.0,92715.0,8.55e-05]
[1734984828827,0.38078632,92735.0,92715.0,8.55e-05]
[1734984829027,0.15,92733.0,92715.0,8.55e-05]
[1734984829327,0.15,92731.0,92715.0,8.55e-05]
[1734984829573,0.15,92729.0,92715.0,8.55e-05]
[1734984829775,0.215689,92726.0,92715.0,8.55e-05]
[1734984830023,0.25533445,92725.0,92715.0,8.55e-05]
[1734984830201,0.15,92723.0,92715.0,0.0016181]
[1734984830408,0.32103258,92722.0,92715.0,0.0016181]
[1734984830607,0.215698,92722.0,92715.0,0.0016181]
[1734984831966,0.216698,92722.0,92715.0,0.0006181]
[1734984832600,0.001,92722.0,92715.0,0.0006181]
[1734984832795,0.003,92722.0,92715.0,0.0006181]
[1734984833094,0.20461016,92721.0,92715.0,0.0006181]
[1734984833339,0.003,92722.0,92715.0,0.0006181]
[1734984833718,0.003,92722.0,92716.0,0.00107846]
[1734984833931,0.002,92722.0,92717.0,0.00107843]
[1734984834450,0.001,92721.0,92715.0,0.0006181]
[1734984834654,0.001,92721.0,92716.0,0.10506475]
[1734984834805,0.002,92722.0,92716.0,0.10506475]
[1734984835007,0.000171,92735.0,92716.0,0.10506475]
[1734984835214,0.000171,92735.0,92717.0,0.001]
[1734984835425,0.002,92722.0,92718.0,0.10506465]
[1734984836260,0.21584,92735.0,92718.0,0.10506465]
[1734984836663,0.000171,92735.0,92718.0,0.10706465]
[1734984836887,0.000171,92735.0,92716.0,0.002]
[1734984836888,0.21567,92734.0,92716.0,0.002]
[1734984837104,0.1249,92733.0,92715.0,0.0006181]
[1734984837301,0.215703,92720.0,92715.0,0.0006181]
[1734984837505,0.215703,92720.0,92718.0,0.001]
[1734984837878,0.215703,92720.0,92715.0,0.0006181]
[1734984838685,0.216703,92720.0,92715.0,0.0006181]
[1734984838886,0.15,92723.0,92715.0,0.0006181]
[1734984839282,0.001,92720.0,92715.0,0.0006181]
[1734984840270,0.001,92720.0,92715.0,0.00169649]
[1734984840497,0.002,92720.0,92716.0,0.10398632]
[1734984840638,0.002,92720.0,92717.0,0.00107836]
[1734984840841,0.001,92720.0,92717.0,0.00107836]
[1734984841708,0.0454,92733.0,92715.0,0.0006181]
[1734984841823,0.15,92731.0,92715.0,0.0006181]
[1734984842028,0.10398632,92730.0,92717.0,0.003]
[1734984842253,0.15,92729.0,92717.0,0.001]
[1734984842813,0.15,92729.0,92717.0,0.005]
[1734984843018,0.15,92729.0,92717.0,0.001]
[1734984843260,0.215684,92728.0,92717.0,0.001]
[1734984843382,0.215684,92728.0,92715.0,0.0006181]
[1734984843793,0.215689,92726.0,92715.0,0.0006181]
[1734984844420,0.215689,92726.0,92717.0,8.55e-05]
[1734984844935,0.006,92728.0,92717.0,8.55e-05]
[1734984845143,0.219685,92728.0,92717.0,8.55e-05]
[1734984845395,0.004,92726.0,92717.0,8.55e-05]
[1734984845808,0.001,92726.0,92717.0,8.55e-05]
[1734984845942,0.0454,92733.0,92717.0,8.55e-05]
[1734984846350,0.215689,92726.0,92717.0,8.55e-05]
[1734984846536,0.218689,92726.0,92717.0,8.55e-05]
[1734984846735,0.215701,92721.0,92717.0,8.55e-05]
[1734984846943,0.003,92726.0,92717.0,8.55e-05]
[1734984846944,0.215691,92725.0,92717.0,8.55e-05]
[1734984847608,0.003,92726.0,92717.0,8.55e-05]
[1734984847817,0.004,92726.0,92717.0,0.00116394]
[1734984847987,0.001,92726.0,92718.0,0.00107841]
[1734984848161,0.15,92733.0,92717.0,8.55e-05]
[1734984848368,0.215702,92721.0,92717.0,8.55e-05]
[1734984848590,0.215695,92724.0,92717.0,8.55e-05]
[1734984849211,0.215696,92723.0,92717.0,8.55e-05]
[1734984849466,0.215695,92724.0,92717.0,8.55e-05]
[1734984850601,0.215687,92727.0,92717.0,8.55e-05]
[1734984850777,0.15,92726.0,92717.0,8.55e-05]
[1734984851376,0.002,92724.0,92717.0,8.55e-05]
[1734984851776,0.15,92729.0,92717.0,0.00116394]
[1734984851979,0.004,92726.0,92717.0,8.55e-05]
[1734984852155,0.001,92724.0,92717.0,0.00116391]
[1734984853399,0.001,92724.0,92717.0,8.55e-05]
[1734984853805,0.001,92726.0,92717.0,8.55e-05]
[1734984854184,0.001,92726.0,92719.0,0.0818]
[1734984854388,0.001,92729.0,92719.0,0.0818]
[1734984854389,0.001,92729.0,92720.0,0.10506462]
[1734984854589,0.15,92741.0,92720.0,0.10506462]
[1734984855235,0.0472,92756.0,92720.0,0.10506462]
[1734984855236,0.215661,92739.0,92720.0,0.10506462]
[1734984855433,0.215688,92727.0,92717.0,8.55e-05]
[1734984855642,0.15,92733.0,92717.0,8.55e-05]
[1734984855859,0.15,92733.0,92720.0,0.001]
[1734984856246,0.15,92727.0,92720.0,0.001]
[1734984856450,0.15,92730.0,92720.0,0.001]
[1734984856682,0.000171,92724.0,92720.0,0.001]
[1734984856972,0.000171,92724.0,92717.0,8.55e-05]
[1734984857127,0.000171,92724.0,92717.0,0.0001405]
[1734984857739,0.000171,92724.0,92717.0,0.00121894]
[1734984858098,0.001171,92724.0,92717.0,0.0001405]
[1734984858843,0.000171,92724.0,92717.0,0.0001405]
[1734984859053,0.001171,92724.0,92717.0,0.00121888]
[1734984860030,0.001171,92724.0,92717.0,0.0001405]
[1734984861281,0.000171,92724.0,92717.0,0.0001405]
[1734984861484,0.000171,92724.0,92718.0,0.18498632]
[1734984861687,0.000171,92724.0,92719.0,0.19464686]
[1734984862025,0.000171,92724.0,92721.0,0.023]
[1734984862154,0.001171,92724.0,92722.0,0.10506451]
[1734984862372,0.000171,92724.0,92722.0,0.10506451]
[1734984862577,0.000171,92724.0,92723.0,0.023]
[1734984862916,0.000171,92724.0,92723.0,0.12698632]
[1734984863296,0.047771,92724.0,92723.0,0.00107816]
[1734984863663,0.15,92723.0,92718.0,0.001]
[1734984863850,0.10398632,92722.0,92717.0,0.0001405]
[1734984864033,0.15,92721.0,92718.0,0.002]
[1734984864234,0.15,92721.0,92717.0,0.0001405]
[1734984864435,0.215703,92720.0,92717.0,0.0001405]
[1734984865133,0.215703,92720.0,92718.0,0.001]
[1734984865344,0.155,92721.0,92718.0,0.001]
[1734984865542,0.215703,92720.0,92717.0,0.0001405]
[1734984866004,0.431406,92720.0,92717.0,0.0001405]
[1734984866351,0.220703,92720.0,92717.0,0.0011405]
[1734984866562,0.440406,92720.0,92717.0,0.0011405]
[1734984866924,0.436406,92720.0,92717.0,0.0011405]
[1734984867278,0.438406,92720.0,92717.0,0.0011405]
[1734984867732,0.431406,92720.0,92717.0,0.0001405]
[1734984868067,0.435406,92720.0,92717.0,0.0001405]
[1734984868289,0.224703,92720.0,92718.0,8.55e-05]
[1734984869047,0.219703,92720.0,92718.0,8.55e-05]
[1734984869258,0.220703,92720.0,92718.0,8.55e-05]
[1734984869701,0.222703,92720.0,92718.0,8.55e-05]
[1734984869979,0.220703,92720.0,92718.0,8.55e-05]
[1734984870628,0.215703,92720.0,92718.0,8.55e-05]
[1734984871052,0.222703,92720.0,92718.0,8.55e-05]
[1734984871615,0.217703,92720.0,92718.0,8.55e-05]
[1734984872149,0.222703,92720.0,92718.0,8.55e-05]
[1734984872472,0.220703,92720.0,92718.0,8.55e-05]
[1734984872673,0.227703,92720.0,92718.0,8.55e-05]
[1734984873223,0.225703,92720.0,92718.0,8.55e-05]
[1734984873407,0.227703,92720.0,92718.0,8.55e-05]
[1734984874050,0.217703,92720.0,92718.0,8.55e-05]
[1734984874395,0.222703,92720.0,92718.0,0.0010855]
[1734984874584,0.222703,92720.0,92718.0,8.55e-05]
[1734984874983,0.227703,92720.0,92718.0,8.55e-05]
[1734984875177,0.012,92720.0,92718.0,8.55e-05]
[1734984876016,0.01,92720.0,92718.0,8.55e-05]
[1734984876412,0.011,92720.0,92718.0,8.55e-05]
[1734984876874,0.01,92720.0,92718.0,8.55e-05]
[1734984877284,0.001,92720.0,92718.0,8.55e-05]
[1734984877509,0.003,92720.0,92718.0,8.55e-05]
[1734984877705,0.001,92720.0,92718.0,8.55e-05]
[1734984877940,0.315705,92719.0,92718.0,8.55e-05]
[1734984878253,0.33702035,92719.0,92718.0,8.55e-05]
[1734984878463,0.81370667,92719.0,92718.0,8.55e-05]
[1734984878709,0.81370667,92719.0,92718.0,0.0010855]
[1734984878939,0.431448,92711.0,92707.0,0.05944408]
[1734984879271,0.215728,92709.0,92707.0,0.03944408]
[1734984879404,0.10398632,92708.0,92707.0,0.03944408]
[1734984879812,0.215728,92709.0,92707.0,0.03944408]
[1734984880449,0.215724,92711.0,92707.0,0.03944408]
[1734984880630,0.00605331,92719.0,92707.0,0.03944408]
[1734984880867,5.331e-05,92719.0,92707.0,0.03944408]
[1734984881096,0.002,92709.0,92707.0,0.03944408]
[1734984881315,0.09521734,92717.0,92707.0,0.04052268]
[1734984881508,0.09521734,92717.0,92707.0,0.03944408]
[1734984881658,0.003,92711.0,92707.0,0.03944408]
[1734984882244,0.001,92709.0,92707.0,0.03944408]
[1734984882443,0.001,92709.0,92708.0,0.10506486]
[1734984882646,0.003,92711.0,92708.0,0.10506486]
[1734984882970,0.003,92711.0,92708.0,0.53652586]
[1734984883167,0.003,92711.0,92710.0,0.215726]
[1734984883378,0.003,92711.0,92707.0,0.04044408]
[1734984883532,0.215726,92710.0,92707.0,0.04044408]
[1734984883732,0.431452,92710.0,92700.0,0.01124448]
[1734984883954,0.215741,92704.0,92700.0,0.00824448]
[1734984884150,0.431483,92704.0,92700.0,0.00824448]
[1734984885220,0.10398632,92703.0,92700.0,0.01024448]
[1734984885426,0.431483,92704.0,92700.0,0.01024448]
[1734984885427,0.215745,92702.0,92700.0,0.00824448]
[1734984885627,0.215745,92702.0,92700.0,0.00324448]
[1734984887073,0.217745,92702.0,92700.0,0.00324448]
[1734984887919,0.221745,92702.0,92700.0,0.00324448]
[1734984888119,0.006,92702.0,92700.0,0.00324448]
[1734984888621,0.215747,92701.0,92700.0,0.00324448]
[1734984888828,0.215747,92701.0,92694.0,0.03002623]
[1734984889023,0.004,92702.0,92694.0,0.02902623]
[1734984889024,0.006,92702.0,92694.0,0.02902623]
[1734984889254,0.002,92702.0,92694.0,0.02902623]
[1734984889454,0.215741,92704.0,92694.0,0.02902623]
[1734984889883,0.001,92701.0,92694.0,0.02902623]
[1734984890301,0.001,92701.0,92695.0,0.0817]
[1734984890671,0.001,92701.0,92694.0,0.02902623]
[1734984891371,0.21571,92717.0,92695.0,0.215761]
[1734984891564,0.001,92704.0,92694.0,0.02902623]
[1734984891766,0.001,92704.0,92694.0,0.03010493]
[1734984891965,0.43142,92717.0,92694.0,0.03010493]
[1734984892166,0.43142,92717.0,92694.0,0.03210493]
[1734984892320,0.215719,92713.0,92694.0,0.03310493]
[1734984892705,0.15005331,92719.0,92694.0,0.13709125]
[1734984892891,0.15005331,92719.0,92694.0,0.13609125]
[1734984893083,0.21871,92717.0,92694.0,0.13609125]
[1734984893294,0.003,92717.0,92695.0,0.215761]
[1734984893486,0.003,92717.0,92696.0,0.00107867]
[1734984893641,0.215712,92716.0,92694.0,0.13401255]
[1734984893963,0.215712,92716.0,92694.0,0.11409805]
[1734984894167,0.000171,92702.0,92694.0,0.11409805]
[1734984894610,0.000171,92702.0,92694.0,0.11309805]
[1734984895258,0.000171,92702.0,92695.0,0.215761]
[1734984895389,0.000171,92702.0,92694.0,0.11509805]
[1734984895887,0.000171,92720.0,92694.0,0.11509805]
[1734984896106,0.215714,92716.0,92694.0,0.11509805]
[1734984896335,0.18104263,92722.0,92694.0,0.11509805]
[1734984896533,0.28502895,92722.0,92694.0,0.11563143]
[1734984896882,0.28502895,92722.0,92694.0,0.11363143]
[1734984897060,0.2157,92721.0,92694.0,0.11363143]
[1734984897264,0.21571,92718.0,92694.0,0.11563143]
[1734984897437,0.21571,92718.0,92694.0,0.11363143]
[1734984897842,0.001,92716.0,92694.0,0.11363143]
[1734984898048,0.10398632,92715.0,92694.0,0.00964511]
[1734984898382,0.431476,92705.0,92694.0,0.01064511]
[1734984898583,0.215738,92705.0,92694.0,0.01064511]
[1734984898703,0.215738,92705.0,92694.0,0.00964511]
[1734984898942,0.215738,92705.0,92689.0,0.09369525]
[1734984899266,0.215738,92705.0,92689.0,0.08969525]
[1734984899267,0.21627138,92705.0,92689.0,0.08969525]
[1734984899463,0.00053338,92705.0,92689.0,0.08969525]
[1734984899672,0.00253338,92705.0,92689.0,0.08969525]
[1734984900637,0.00553338,92705.0,92689.0,0.08969525]
[1734984900930,0.00253338,92705.0,92689.0,0.08969525]
[1734984901154,0.00553338,92705.0,92689.0,0.08969525]
[1734984901360,0.00353338,92705.0,92689.0,0.08969525]
[1734984901563,0.00553338,92705.0,92696.0,0.215758]
[1734984901774,0.00853338,92705.0,92699.0,0.15]
[1734984901945,0.00853338,92705.0,92704.0,0.27698632]
[1734984902168,0.00853338,92705.0,92704.0,0.35298632]
[1734984902169,0.00253338,92705.0,92704.0,0.35298632]
[1734984902367,0.00053338,92705.0,92704.0,0.42686703]
[1734984902696,0.00153338,92705.0,92704.0,0.42686703]
[1734984903076,0.00053338,92705.0,92704.0,0.42686703]
[1734984903449,0.00353338,92705.0,92704.0,0.42686703]
[1734984903652,0.00053338,92705.0,92704.0,0.35298632]
[1734984904198,0.00053338,92705.0,92704.0,0.36198632]
[1734984904375,0.00053338,92705.0,92704.0,0.46598632]
[1734984904578,0.00053338,92705.0,92704.0,0.36598632]
[1734984905681,0.00053338,92705.0,92704.0,0.56997264]
[1734984906408,0.000171,92724.0,92723.0,0.388696]
[1734984906611,0.000171,92724.0,92723.0,0.71954227]
[1734984906809,0.01123973,92786.0,92734.0,0.56707]
[1734984906810,0.09521734,92759.0,92734.0,0.56707]
[1734984907013,0.09521734,92759.0,92734.0,1.34184264]
[1734984907610,0.09521734,92786.0,92734.0,1.34184264]
[1734984908299,0.15056263,92789.0,92756.0,0.0796]
[1734984908494,0.215545,92788.0,92757.0,0.10506421]
[1734984908860,0.15,92787.0,92758.0,0.215614]
[1734984909085,0.21523249,92788.0,92756.0,0.1796]
[1734984909086,0.15,92785.0,92759.0,0.155092]
[1734984909255,0.15,92785.0,92759.0,0.10506418]
[1734984909439,0.15,92785.0,92759.0,0.10522413]
[1734984909876,0.215556,92783.0,92759.0,0.10414627]
[1734984910068,0.21557,92778.0,92759.0,0.10414627]
[1734984910478,0.01497185,92789.0,92760.0,0.02837463]
[1734984910649,0.006,92789.0,92761.0,0.32067121]
[1734984910855,0.006,92789.0,92762.0,0.00107788]
[1734984911050,0.15,92790.0,92763.0,0.31958932]
[1734984911277,0.003,92778.0,92774.0,0.1]
[1734984911838,0.000171,92795.0,92775.0,0.1050641]
[1734984912041,0.000171,92795.0,92780.0,0.1]
[1734984912247,0.004,92789.0,92781.0,0.1]
[1734984912420,0.004,92789.0,92776.0,0.0805]
[1734984912596,0.004,92789.0,92777.0,0.10398632]
[1734984913186,0.004,92789.0,92766.0,0.0776]
[1734984913187,0.215545,92788.0,92768.0,0.1]
[1734984913372,0.215532,92794.0,92771.0,0.1]
[1734984913565,0.000171,92795.0,92771.0,0.10398632]
[1734984913816,0.215575,92775.0,92755.0,0.1]
[1734984913989,0.215559,92782.0,92765.0,0.1]
[1734984914185,0.10398632,92794.0,92765.0,0.10398632]
[1734984914522,0.004171,92795.0,92774.0,0.08]
[1734984914722,0.000171,92795.0,92776.0,0.0776]
[1734984914928,0.000171,92795.0,92777.0,0.10398632]
[1734984915488,0.000171,92795.0,92778.0,0.215568]
[1734984915714,0.000171,92795.0,92785.0,0.215551]
[1734984916072,0.000171,92795.0,92787.0,0.215547]
[1734984916207,0.000171,92795.0,92789.0,0.215542]
[1734984916414,0.000171,92795.0,92790.0,0.10398632]
[1734984916647,0.001171,92795.0,92790.0,0.10398632]
[1734984917036,0.006171,92795.0,92790.0,0.10398632]
[1734984917442,0.000171,92795.0,92790.0,0.10398632]
[1734984917638,0.000171,92795.0,92782.0,0.08]
[1734984917843,0.004171,92795.0,92782.0,0.08]
[1734984918101,0.004171,92795.0,92784.0,0.215554]
[1734984918301,0.002171,92795.0,92782.0,0.08]
[1734984918458,0.002171,92795.0,92782.0,0.18398632]
[1734984918676,0.004171,92795.0,92782.0,0.18398632]
[1734984918855,0.004171,92795.0,92782.0,0.08]
[1734984919058,0.002171,92795.0,92782.0,0.06]
[1734984919466,0.213861,92800.0,92782.0,0.06]
[1734984919873,0.001,92795.0,92782.0,0.06]
[1734984920098,0.003,92795.0,92782.0,0.06]
[1734984920504,0.003,92795.0,92782.0,0.0953173]
[1734984920735,0.003,92795.0,92784.0,0.275552]
[1734984920939,0.001,92795.0,92785.0,0.10398632]
[1734984921203,0.001,92795.0,92786.0,0.215549]
[1734984921494,0.001,92795.0,92776.0,0.0776]
[1734984921495,0.215531,92794.0,92776.0,0.0776]
[1734984921649,0.001,92795.0,92767.0,0.0792]
[1734984921847,0.001,92795.0,92782.0,0.06]
[1734984922304,0.001,92795.0,92783.0,0.00107769]
[1734984922663,0.215502,92807.0,92783.0,0.00107769]
[1734984923086,0.002,92795.0,92783.0,0.06107767]
[1734984923634,0.2155,92807.0,92787.0,0.06]
[1734984923838,0.435001,92807.0,92783.0,0.04446194]
[1734984924046,0.10398632,92806.0,92769.0,0.13]
[1734984924301,0.10398632,92806.0,92767.0,0.0792]
[1734984924302,0.215539,92791.0,92767.0,0.0792]
[1734984924532,0.215542,92789.0,92783.0,0.001]
[1734984924739,0.215553,92785.0,92783.0,0.001]
[1734984924939,0.31953932,92785.0,92783.0,0.001]
[1734984925551,0.31953932,92785.0,92755.0,0.0792]
[1734984925786,0.2255,92782.0,92743.0,0.0792]
[1734984925988,0.215589,92769.0,92733.0,0.34644882]
[1734984926182,0.46957532,92769.0,92733.0,0.34644882]
[1734984926325,0.46957532,92769.0,92733.0,0.09644882]
[1734984926719,0.1,92755.0,92714.0,0.17564882]
[1734984926993,0.1,92759.0,92730.0,6.318e-05]
[1734984926994,0.10398632,92754.0,92730.0,6.318e-05]
[1734984927204,0.21561,92760.0,92731.0,0.10398632]
[1734984927403,0.21561,92760.0,92732.0,0.00107823]
[1734984927606,0.21561,92760.0,92733.0,0.31965832]
[1734984927812,0.43122,92760.0,92735.0,0.215668]
[1734984928038,0.004,92755.0,92736.0,0.03207957]
[1734984928273,0.004,92755.0,92738.0,0.215661]
[1734984928461,0.004,92755.0,92743.0,0.215648]
[1734984928662,0.004,92755.0,92744.0,0.31963232]
[1734984929019,0.004,92755.0,92744.0,0.30963232]
[1734984929225,0.215597,92766.0,92765.0,8.55e-05]
[1734984930808,0.217597,92766.0,92765.0,8.55e-05]
[1734984930957,0.221597,92766.0,92765.0,8.55e-05]
[1734984932191,0.33158332,92766.0,92765.0,0.0010855]
[1734984932550,0.57758332,92766.0,92765.0,0.0010855]
[1734984932752,0.57158332,92766.0,92765.0,8.55e-05]
[1734984933181,1.04917232,92766.0,92765.0,5e-07]
[1734984933473,1.04917232,92766.0,92705.0,0.215738]
[1734984933474,0.215691,92725.0,92705.0,0.0831]
[1734984933664,0.215689,92727.0,92716.0,6.318e-05]
[1734984933859,0.0773,92741.0,92716.0,6.318e-05]
[1734984934109,0.1,92738.0,92705.0,0.08216318]
[1734984934291,0.215706,92719.0,92705.0,0.08232289]
[1734984934708,0.215699,92722.0,92705.0,0.08232289]
[1734984935109,0.02175094,92740.0,92706.0,0.10398632]
[1734984935362,0.215656,92740.0,92716.0,0.21571]
[1734984935532,0.215655,92741.0,92718.0,0.215707]
[1734984935684,0.15,92755.0,92716.0,0.21571]
[1734984935685,0.1,92751.0,92716.0,0.10398632]
[1734984935918,0.10398632,92750.0,92717.0,0.01039863]
[1734984936128,0.15,92749.0,92717.0,0.01039863]
[1734984936337,0.15,92749.0,92705.0,0.00015971]
[1734984936338,0.006,92740.0,92706.0,0.001]
[1734984936542,0.215695,92724.0,92708.0,0.15]
[1734984936807,0.215688,92727.0,92709.0,0.10398632]
[1734984937549,0.215673,92733.0,92709.0,0.10398632]
[1734984937550,0.215698,92723.0,92709.0,0.10398632]
[1734984937766,0.1,92748.0,92705.0,0.00015971]
[1734984937767,0.10398632,92722.0,92705.0,0.00015971]
[1734984937985,0.215732,92708.0,92705.0,0.00015971]
[1734984938203,0.431464,92708.0,92705.0,0.00015971]
[1734984938826,0.215749,92700.0,92689.0,0.01478075]
[1734984939022,0.25398632,92699.0,92683.0,8.54e-05]
[1734984939170,0.215754,92698.0,92683.0,8.54e-05]
[1734984939395,0.15,92696.0,92683.0,8.54e-05]
[1734984940094,0.1,92692.0,92683.0,8.54e-05]
[1734984940292,0.1,92689.0,92683.0,0.0010854]
[1734984940524,0.14995,92694.0,92683.0,0.0010854]
[1734984941129,0.215762,92695.0,92683.0,0.0010854]
[1734984941395,0.215766,92693.0,92684.0,0.10398632]
[1734984941809,0.1,92702.0,92683.0,8.54e-05]
[1734984942011,0.215775,92689.0,92683.0,0.0010854]
[1734984942215,0.215775,92689.0,92683.0,8.54e-05]
[1734984943072,0.215768,92692.0,92683.0,8.54e-05]
[1734984943391,0.21578,92687.0,92683.0,8.54e-05]
[1734984944511,0.16471305,92692.0,92683.0,8.54e-05]
[1734984944726,0.25,92702.0,92683.0,8.54e-05]
[1734984945075,0.15,92701.0,92683.0,8.54e-05]
[1734984945299,0.002,92689.0,92683.0,8.54e-05]
[1734984945910,0.21365424,92687.0,92683.0,0.0010854]
[1734984946123,0.21365424,92687.0,92683.0,8.54e-05]
[1734984946841,0.215777,92688.0,92683.0,8.54e-05]
[1734984948498,0.215782,92686.0,92683.0,8.54e-05]
[1734984948704,0.431564,92686.0,92683.0,8.54e-05]
[1734984948914,0.00053362,92700.0,92683.0,8.54e-05]
[1734984949117,0.001,92688.0,92683.0,8.54e-05]
[1734984949647,0.215772,92691.0,92683.0,8.54e-05]
[1734984949891,0.00053362,92700.0,92684.0,0.10398632]
[1734984949892,0.001,92686.0,92684.0,0.10398632]
[1734984950351,0.001,92686.0,92683.0,8.54e-05]
[1734984950888,0.215784,92685.0,92683.0,8.54e-05]
[1734984951996,0.215778,92688.0,92683.0,8.54e-05]
[1734984952170,0.215778,92688.0,92683.0,0.0001354]
[1734984952343,0.001,92685.0,92683.0,0.0011354]
[1734984953090,0.00053362,92700.0,92684.0,0.10398632]
[1734984953527,0.00053362,92700.0,92683.0,0.0011354]
[1734984953737,0.00053362,92700.0,92685.0,0.10398632]
[1734984953909,0.000171,92688.0,92683.0,0.0011354]
[1734984954113,0.000171,92688.0,92684.0,0.10398632]
[1734984954318,0.002171,92688.0,92684.0,0.10398632]
[1734984954740,0.000171,92688.0,92684.0,0.10398632]
[1734984955115,0.001171,92688.0,92683.0,0.0001354]
[1734984955286,0.001171,92688.0,92684.0,0.001]
[1734984955690,0.000171,92688.0,92684.0,0.001]
[1734984955916,0.215779,92687.0,92684.0,0.001]
[1734984956324,0.216948,92688.0,92684.0,0.001]
[1734984957244,0.215948,92688.0,92684.0,0.001]
[1734984958003,0.00053362,92700.0,92684.0,0.001]
[1734984958134,0.215772,92691.0,92684.0,0.001]
[1734984958339,0.001,92688.0,92684.0,0.001]
[1734984958960,0.215759,92696.0,92684.0,0.001]
[1734984959913,0.215752,92699.0,92684.0,0.001]
[1734984960319,0.431505,92699.0,92684.0,0.001]
[1734984960471,0.00053362,92700.0,92684.0,0.001]
[1734984960664,0.001,92688.0,92683.0,0.0001354]
[1734984960895,0.001,92688.0,92683.0,0.10412172]
[1734984961088,0.001,92688.0,92683.0,0.0001354]
[1734984961297,0.002,92696.0,92683.0,0.0001354]
[1734984961491,0.215756,92698.0,92683.0,0.0001354]
[1734984961693,0.215764,92694.0,92683.0,0.0001354]
[1734984962058,0.215764,92694.0,92683.0,0.0011354]
[1734984962504,0.215756,92697.0,92683.0,0.0011354]
[1734984962505,0.001,92688.0,92683.0,0.0011354]
[1734984962709,0.215782,92686.0,92683.0,0.0001354]
[1734984962926,0.001,92688.0,92683.0,0.0001354]
[1734984964044,0.002,92696.0,92684.0,0.10398632]
[1734984964240,0.00053362,92700.0,92685.0,0.1]
[1734984964441,0.003,92694.0,92686.0,0.10398632]
[1734984964657,0.002,92694.0,92692.0,0.1]
[1734984964857,0.00053362,92700.0,92692.0,0.1798]
[1734984965059,0.00053362,92700.0,92683.0,0.0011354]
[1734984965256,0.215777,92689.0,92683.0,0.0001354]
[1734984965500,0.002,92696.0,92683.0,0.0001354]
[1734984965501,0.215778,92688.0,92683.0,0.0001354]
[1734984965702,0.215778,92688.0,92686.0,0.002]
[1734984965916,0.215778,92688.0,92683.0,0.0001354]
[1734984966117,0.215782,92686.0,92683.0,0.0001354]
[1734984966342,0.10398632,92685.0,92683.0,0.0001354]
[1734984966883,0.173,92685.0,92683.0,0.0001354]
[1734984967016,0.273,92681.0,92680.0,0.06066338]
[1734984967220,0.15,92680.0,92677.0,0.09286561]
[1734984967423,0.438826,92667.0,92666.0,99.99920301]
[1734984967650,1.20566525,92667.0,92666.0,99.99920301]
[1734984968017,1.20566525,92667.0,92666.0,99.95919005]
[1734984968221,1.20610356,92667.0,92666.0,99.82795558]
[1734984968481,1.20566525,92667.0,92666.0,99.80619958]
[1734984968662,1.20619854,92667.0,92666.0,99.80619958]
[1734984968921,0.87098454,92667.0,92666.0,99.73119958]
[1734984969208,0.87598454,92667.0,92666.0,99.71119958]
[1734984969535,0.66232154,92667.0,92666.0,99.71119958]
[1734984969766,0.56618929,92667.0,92666.0,99.71119958]
[1734984970004,0.50133029,92667.0,92666.0,99.71119958]
[1734984970206,0.50133029,92667.0,92666.0,99.71115958]
[1734984971244,0.58001329,92667.0,92666.0,99.71115958]
[1734984971449,0.57501329,92667.0,92666.0,99.71115958]
[1734984971646,0.37035929,92667.0,92666.0,99.71115958]
[1734984971844,0.00353329,92667.0,92666.0,99.70815958]
[1734984972650,0.00053329,92667.0,92666.0,99.70815958]
[1734984972851,0.00253329,92667.0,92666.0,99.70815958]
[1734984973055,0.00253329,92667.0,92666.0,99.8121459]
[1734984973390,0.00253329,92667.0,92666.0,99.9356459]
[1734984973598,0.00253329,92667.0,92666.0,100.0356459]
[1734984973998,0.00253329,92667.0,92666.0,100.0156459]
[1734984974398,0.00053329,92667.0,92666.0,100.0156459]
[1734984974628,0.00153329,92667.0,92666.0,100.0156459]
[1734984974761,0.00353329,92667.0,92666.0,100.0156459]
[1734984975169,0.00453329,92667.0,92666.0,100.0246459]
[1734984975372,0.00253329,92667.0,92666.0,100.0246459]
[1734984976017,0.00253329,92667.0,92666.0,100.0246859]
[1734984976226,0.00253329,92667.0,92666.0,100.0296859]
[1734984976461,0.00253329,92667.0,92666.0,99.9296859]
[1734984976631,0.00253329,92667.0,92666.0,99.82569958]
[1734984977340,0.00153329,92667.0,92666.0,99.81669958]
[1734984977570,0.00053329,92667.0,92666.0,99.81669958]
[1734984977692,0.00153329,92667.0,92666.0,99.82569958]
[1734984977896,0.00153329,92667.0,92666.0,99.81169958]
[1734984978094,0.00053329,92667.0,92666.0,99.9156859]
[1734984978456,0.00053329,92667.0,92666.0,99.9256859]
[1734984978457,0.00153329,92667.0,92666.0,99.9256859]
[1734984978884,0.00153329,92667.0,92666.0,99.9216859]
[1734984979011,0.00053329,92667.0,92666.0,99.8956859]
[1734984979216,0.00053329,92667.0,92666.0,99.8966859]
[1734984979423,0.04395013,92780.0,92677.0,0.1]
[1734984979424,0.1,92718.0,92677.0,0.1]